bitfinex/quotes_SOLUSD_20250308
["timestamp","ask_amount","ask_price","bid_price","bid_amount"]
[1741433312683,0.0001,137.55,137.54,30.6804392]
[1741433313500,0.0001,137.55,137.54,52.4364784]
[1741433314184,0.0001,137.55,137.54,30.6804392]
[1741433314505,0.0001,137.55,137.54,7.2706]
[1741433314801,0.0001,137.55,137.54,29.0266392]
[1741433315003,0.0001,137.55,137.54,35.4666392]
[1741433319910,0.0001,137.55,137.52,7.2716]
[1741433320114,0.0001,137.55,137.51,90.4680392]
[1741433321501,0.0001,137.55,137.51,83.1960392]
[1741433321706,28.0020392,137.55,137.51,6.44]
[1741433321900,6.246,137.55,137.51,6.44]
[1741433322101,6.246,137.55,137.51,28.1960392]
[1741433322413,6.246,137.55,137.53,21.7560392]
[1741433322414,0.0001,137.55,137.53,21.7560392]
[1741433322818,0.0001,137.55,137.54,21.7560392]
[1741433323311,0.0001,137.55,137.53,29.0271392]
[1741433324110,0.0001,137.55,137.54,21.7560392]
[1741433325604,0.0001,137.55,137.54,29.0266392]
[1741433326308,0.0001,137.55,137.54,84.0266392]
[1741433339825,0.0001,137.55,137.54,90.4666392]
[1741433340715,0.0001,137.55,137.53,0.033]
[1741433341227,21.7560392,137.54,137.53,0.033]
[1741433342213,40.40568806,137.54,137.53,0.033]
[1741433342416,47.67628806,137.54,137.53,0.033]
[1741433345314,129.97628806,137.54,137.53,0.033]
[1741433345631,21.7560392,137.49,137.45,7.2752]
[1741433346226,21.7560392,137.49,137.44,28.1960392]
[1741433346227,21.7560392,137.48,137.44,6.44]
[1741433347534,21.7560392,137.48,137.44,13.7157]
[1741433348014,21.7560392,137.48,137.44,7.2757]
[1741433348532,21.7560392,137.49,137.44,7.2757]
[1741433348703,21.7560392,137.49,137.43,29.0323392]
[1741433350333,21.7560392,137.5,137.44,21.7560392]
[1741433350510,21.7560392,137.5,137.44,28.1960392]
[1741433352131,21.7560392,137.5,137.45,7.2753]
[1741433352333,18.64964886,137.51,137.45,7.2753]
[1741433352518,40.40568806,137.51,137.45,29.0313392]
[1741433353223,104.0560392,137.52,137.46,21.7560392]
[1741433353426,21.7560392,137.52,137.46,21.7560392]
[1741433353721,21.7560392,137.52,137.45,7.2753]
[1741433353722,18.64964886,137.52,137.47,21.7560392]
[1741433354127,18.64964886,137.52,137.48,7.2737]
[1741433354333,28.3856392,137.53,137.48,7.2737]
[1741433354524,21.7560392,137.54,137.48,29.0297392]
[1741433356035,0.0001,137.55,137.5,21.7560392]
[1741433356211,0.0001,137.55,137.51,21.7560392]
[1741433356538,0.0001,137.55,137.5,21.7560392]
[1741433358210,0.0001,137.55,137.51,7.2721]
[1741433358641,21.7560392,137.52,137.49,13.7131]
[1741433358831,21.7560392,137.52,137.5,0.033]
[1741433360730,21.7560392,137.51,137.5,0.033]
[1741433362941,47.67778806,137.51,137.5,0.033]
[1741433363623,21.7560392,137.51,137.5,0.033]
[1741433363839,21.7560392,137.52,137.5,0.033]
[1741433364524,21.7560392,137.51,137.5,0.033]
[1741433365841,40.40568806,137.52,137.5,0.033]
[1741433366143,18.64964886,137.52,137.5,0.033]
[1741433367653,40.40578806,137.55,137.5,0.033]
[1741433368164,0.0001,137.55,137.5,21.7890392]
[1741433368466,0.0001,137.55,137.52,21.7560392]
[1741433369869,0.0001,137.55,137.53,7.2711]
[1741433370369,21.7561392,137.55,137.51,7.2721]
[1741433371660,0.0001,137.55,137.51,7.2721]
[1741433371964,0.0001,137.55,137.51,29.0281392]
[1741433372743,0.0001,137.55,137.52,21.7560392]
[1741433372945,0.0001,137.55,137.53,7.2711]
[1741433375867,0.0001,137.55,137.5,78.3287392]
[1741433376070,0.0001,137.55,137.51,7.2721]
[1741433376951,21.7561392,137.55,137.5,7.3055]
[1741433377647,21.7560392,137.54,137.5,0.033]
[1741433377845,21.7561392,137.55,137.5,0.033]
[1741433380147,21.7560392,137.54,137.5,0.033]
[1741433380746,21.7561392,137.55,137.5,0.033]
[1741433381180,0.0001,137.55,137.5,21.7890392]
[1741433382075,0.0001,137.55,137.51,7.2721]
[1741433383362,21.7560392,137.54,137.5,7.3056]
[1741433383877,21.7560392,137.54,137.5,0.033]
[1741433385874,21.7561392,137.55,137.5,0.033]
[1741433386085,0.0001,137.55,137.5,21.7890392]
[1741433387677,0.0001,137.55,137.51,7.2721]
[1741433387975,21.7561392,137.55,137.51,7.2721]
[1741433388864,21.7560392,137.54,137.51,7.2721]
[1741433389181,21.7560392,137.53,137.5,0.033]
[1741433389479,21.7560392,137.52,137.5,0.033]
[1741433389779,21.7560392,137.51,137.5,0.033]
[1741433389994,40.40568806,137.51,137.5,0.033]
[1741433390286,21.7560392,137.51,137.5,0.033]
[1741433391180,40.40568806,137.51,137.5,0.033]
[1741433392651,82.3,137.54,137.5,0.033]
[1741433392858,21.7560392,137.53,137.5,0.033]
[1741433394067,18.64974886,137.55,137.5,0.033]
[1741433394068,21.7560392,137.54,137.5,0.033]
[1741433394583,21.7561392,137.55,137.5,0.033]
[1741433395179,21.7560392,137.54,137.5,0.033]
[1741433396071,0.0001,137.55,137.5,23.4525392]
[1741433396374,0.0001,137.55,137.51,21.7560392]
[1741433397283,0.0001,137.55,137.52,7.2716]
[1741433400579,21.7561392,137.55,137.51,7.272]
[1741433402495,0.0001,137.55,137.51,7.272]
[1741433403486,21.7561392,137.55,137.51,7.272]
[1741433403707,0.0001,137.55,137.51,7.272]
[1741433404192,0.0001,137.55,137.51,29.0280392]
[1741433404391,0.0001,137.55,137.51,7.272]
[1741433404574,21.7560392,137.53,137.5,1.6965]
[1741433405383,21.7560392,137.54,137.5,8.9691]
[1741433405584,18.64974886,137.55,137.5,8.9691]
[1741433405585,40.40578806,137.55,137.5,8.9691]
[1741433406173,0.0001,137.55,137.5,30.7251392]
[1741433406387,21.7561392,137.55,137.5,8.9691]
[1741433406785,0.0001,137.55,137.5,8.9691]
[1741433406987,0.0001,137.55,137.5,30.7251392]
[1741433407498,0.0001,137.55,137.5,48.9069392]
[1741433407888,21.7561392,137.55,137.5,27.1509]
[1741433409005,0.0001,137.55,137.5,48.9069392]
[1741433410603,0.0001,137.55,137.51,21.7560392]
[1741433411192,0.0001,137.55,137.5,30.7251392]
[1741433411385,21.7561392,137.55,137.5,8.9691]
[1741433411580,21.7560392,137.54,137.5,8.9691]
[1741433411995,21.7561392,137.55,137.5,8.9691]
[1741433412194,0.0001,137.55,137.5,8.9691]
[1741433412390,0.0001,137.55,137.51,21.7560392]
[1741433413298,0.0001,137.55,137.5,96.04699002]
[1741433413805,0.0001,137.55,137.51,13.89609002]
[1741433414006,0.0001,137.55,137.52,25.4507]
[1741433414397,0.0001,137.55,137.52,39.34679002]
[1741433414597,0.0001,137.55,137.52,45.78679002]
[1741433414905,0.0001,137.55,137.52,31.8907]
[1741433415796,0.0001,137.55,137.52,45.78679002]
[1741433418507,0.0001,137.55,137.54,13.89609002]
[1741433419528,0.0001,137.55,137.53,75.39349002]
[1741433419908,0.0001,137.55,137.54,13.89609002]
[1741433420511,0.0001,137.55,137.54,21.16669002]
[1741433421712,0.0001,137.55,137.54,77.70799002]
[1741433422820,0.0001,137.59,137.54,77.70799002]
[1741433423136,0.0001,137.59,137.56,13.89609002]
[1741433424261,0.0001,137.59,137.57,13.89609002]
[1741433424550,0.0001,137.59,137.57,20.33609002]
[1741433424934,0.0001,137.59,137.58,7.2684]
[1741433428127,0.0001,137.59,137.58,22.67129002]
[1741433430831,0.0001,137.59,137.58,1.5068]
[1741433431038,0.0001,137.59,137.58,8.7752]
[1741433431429,0.0001,137.59,137.58,22.67129002]
[1741433432441,0.0001,137.59,137.58,8.7752]
[1741433434847,0.0001,137.59,137.57,61.44]
[1741433435516,0.0001,137.59,137.57,68.709]
[1741433435919,0.0001,137.59,137.57,90.40205017]
[1741433436233,0.0001,137.59,137.58,28.96145017]
[1741433439407,0.0001,137.59,137.58,83.96145017]
[1741433442344,0.0001,137.59,137.58,85.47035017]
[1741433442815,0.0001,137.59,137.58,62.2684]
[1741433443136,0.0001,137.59,137.58,83.96145017]
[1741433447134,0.03,137.61,137.6,20.0]
[1741433447330,0.03,137.61,137.6,41.69305017]
[1741433448412,0.03,137.61,137.6,48.96045017]
[1741433448610,0.03,137.68,137.61,1.6508]
[1741433448832,0.03,137.68,137.65,21.69305017]
[1741433450308,0.03,137.68,137.66,7.2642]
[1741433451044,0.03,137.68,137.66,28.95725017]
[1741433452534,0.03,137.68,137.64,18.1631]
[1741433452535,0.03,137.68,137.67,21.69305017]
[1741433454326,0.03,137.68,137.66,21.69305017]
[1741433455342,0.03,137.68,137.67,13.86363986]
[1741433457447,0.03,137.68,137.67,21.12733986]
[1741433458134,0.03,137.68,137.67,82.54733986]
[1741433458738,0.03,137.68,137.67,84.19813986]
[1741433459124,0.0001,137.69,137.67,84.19813986]
[1741433459325,0.0001,137.69,137.68,87.96784816]
[1741433459624,0.03,137.7,137.69,54.9999]
[1741433459826,0.03,137.7,137.69,68.86353986]
[1741433460623,0.03,137.7,137.67,6.42]
[1741433462050,0.03,137.7,137.69,13.86363986]
[1741433462452,0.03,137.7,137.68,13.86363986]
[1741433462827,0.03,137.7,137.67,6.42]
[1741433464749,0.03,137.7,137.66,0.033]
[1741433464750,13.89363986,137.7,137.66,0.033]
[1741433464953,13.86363986,137.67,137.66,0.033]
[1741433465428,13.86363986,137.68,137.66,0.033]
[1741433467047,13.89363986,137.7,137.66,0.033]
[1741433467636,0.03,137.7,137.66,0.033]
[1741433467951,0.03,137.7,137.66,13.89663986]
[1741433468147,0.03,137.7,137.66,20.31663986]
[1741433468337,0.03,137.7,137.66,13.7169]
[1741433468535,0.03,137.7,137.66,6.453]
[1741433468738,13.89363986,137.7,137.66,6.453]
[1741433468941,13.86363986,137.69,137.66,0.033]
[1741433469955,0.03,137.7,137.66,7.2971]
[1741433470647,0.03,137.7,137.66,76.16073986]
[1741433470866,0.03,137.7,137.67,13.86363986]
[1741433471049,0.03,137.7,137.66,76.16073986]
[1741433472075,0.03,137.7,137.66,55.033]
[1741433472234,13.89363986,137.7,137.66,55.033]
[1741433474050,21.15573986,137.7,137.66,55.033]
[1741433474236,13.86363986,137.69,137.66,55.033]
[1741433475054,13.86363986,137.69,137.66,0.033]
[1741433475855,21.15573986,137.7,137.66,0.033]
[1741433476529,13.89363986,137.7,137.66,0.033]
[1741433476734,0.03,137.7,137.66,0.033]
[1741433477145,0.03,137.7,137.66,13.89663986]
[1741433477432,0.03,137.7,137.68,13.86363986]
[1741433478234,0.03,137.7,137.68,21.12673986]
[1741433478446,0.03,137.7,137.67,21.12713986]
[1741433479557,0.03,137.7,137.68,21.12643986]
[1741433479735,0.03,137.7,137.69,13.86363986]
[1741433481156,0.03,137.7,137.69,21.12623986]
[1741433482579,0.03,137.7,137.68,61.42]
[1741433482857,0.03,137.7,137.68,82.54673986]
[1741433484040,0.03,137.7,137.69,13.86363986]
[1741433485562,0.03,137.7,137.69,21.12623986]
[1741433488481,0.03,137.7,137.69,76.12623986]
[1741433489955,0.0001,137.7,137.69,131.5807993]
[1741433490639,0.03,137.72,137.69,131.5807993]
[1741433490640,0.03,137.72,137.71,20.0]
[1741433490844,0.03,137.73,137.71,88.86363986]
[1741433491144,0.03,137.75,137.72,15.46273986]
[1741433491365,0.03,137.75,137.74,13.86363986]
[1741433491767,0.03,137.75,137.74,21.12363986]
[1741433492355,0.0001,137.8,137.78,21.5991]
[1741433492562,0.1556852,137.89,137.78,21.5991]
[1741433492563,0.1556852,137.89,137.83,20.0]
[1741433492856,0.1556852,137.89,137.83,88.86363986]
[1741433493061,13.86363986,137.88,137.83,75.0]
[1741433494380,13.86363986,137.86,137.81,13.86363986]
[1741433494559,1.5799,137.88,137.83,13.86363986]
[1741433495064,14.01932506,137.89,137.83,13.86363986]
[1741433495368,21.76432181,137.89,137.83,21.60863661]
[1741433495569,0.1556852,137.89,137.83,21.60863661]
[1741433496670,0.1556852,137.89,137.83,105.47257322]
[1741433498963,0.1556852,137.89,137.83,83.86393661]
[1741433501961,21.76432181,137.89,137.83,83.86393661]
[1741433503073,0.1556852,137.89,137.83,83.86393661]
[1741433507375,0.1556852,137.89,137.83,102.00213661]
[1741433507551,0.1556852,137.89,137.85,21.60863661]
[1741433508152,0.1556852,137.89,137.87,21.60863661]
[1741433508353,0.1556852,137.89,137.88,21.60863661]
[1741433509447,0.1556852,137.89,137.85,80.3898]
[1741433509448,0.1556852,137.89,137.87,21.60863661]
[1741433509655,0.1556852,137.89,137.86,21.60863661]
[1741433509856,0.1556852,137.89,137.85,28.86283661]
[1741433510266,0.1556852,137.89,137.86,21.60863661]
[1741433511180,0.1556852,137.89,137.85,7.2542]
[1741433511181,0.1556852,137.89,137.85,28.86283661]
[1741433513682,0.1556852,137.89,137.85,83.86283661]
[1741433513981,0.1556852,137.89,137.85,55.0]
[1741433515172,29.01662181,137.89,137.85,55.0]
[1741433515482,21.76432181,137.89,137.85,55.0]
[1741433515981,0.1556852,137.89,137.85,83.86263661]
[1741433517381,0.1556852,137.89,137.85,62.254]
[1741433517560,0.1556852,137.89,137.85,55.0]
[1741433518687,0.1556852,137.89,137.81,62.2563]
[1741433518688,13.82714744,137.88,137.81,62.2563]
[1741433518866,13.82714744,137.88,137.82,13.82714744]
[1741433519065,27.71103406,137.89,137.83,13.82714744]
[1741433519066,41.5381815,137.89,137.83,13.82714744]
[1741433519561,1.8091852,137.89,137.84,33.82714744]
[1741433519792,1.8091852,137.89,137.85,13.82714744]
[1741433520085,1.8091852,137.89,137.84,68.82714744]
[1741433520380,9.0612852,137.89,137.84,68.82714744]
[1741433520581,13.82714744,137.88,137.84,55.0]
[1741433520971,13.82714744,137.87,137.84,55.0]
[1741433521480,41.5380815,137.89,137.84,55.0]
[1741433521685,1.8091852,137.89,137.84,76.08184744]
[1741433522009,1.8091852,137.89,137.84,68.82714744]
[1741433522171,1.8091852,137.89,137.84,76.08184744]
[1741433522495,22.88853264,137.89,137.84,55.0]
[1741433523485,0.1556852,137.89,137.85,13.82714744]
[1741433523802,0.1556852,137.89,137.87,13.82714744]
[1741433524306,0.1556852,137.89,137.87,21.07994744]
[1741433525982,0.03,137.87,137.86,20.24714744]
[1741433526178,0.03,137.87,137.86,40.24714744]
[1741433526380,0.03,137.87,137.86,47.50084744]
[1741433527215,0.03,137.87,137.86,26.42]
[1741433527384,0.03,137.87,137.86,6.42]
[1741433528477,0.03,137.87,137.86,27.50084744]
[1741433529279,0.03,137.87,137.86,35.27482447]
[1741433530887,0.03,137.87,137.86,90.27482447]
[1741433541394,0.03,137.87,137.86,68.6737]
[1741433541986,0.03,137.87,137.86,90.27482447]
[1741433545102,0.03,137.87,137.86,83.85482447]
[1741433545295,0.03,137.87,137.86,55.0]
[1741433546010,0.03,137.87,137.86,62.2537]
[1741433546395,0.03,137.87,137.86,83.85482447]
[1741433549014,0.03,137.87,137.85,6.42]
[1741433549015,0.03,137.87,137.85,28.85522447]
[1741433549311,0.03,137.87,137.85,7.2541]
[1741433549800,0.03,137.87,137.84,17.83750957]
[1741433550688,0.03,137.87,137.84,46.69323404]
[1741433551089,0.03,137.87,137.84,35.30872447]
[1741433553313,0.03,137.87,137.86,41.60112447]
[1741433554196,0.03,137.87,137.86,96.60112447]
[1741433555004,0.03,137.87,137.86,103.85482447]
[1741433557025,0.1556852,137.89,137.88,27.2526]
[1741433557229,0.1556852,137.89,137.88,103.85372447]
[1741433561215,0.1556852,137.89,137.88,96.07300936]
[1741433561420,0.1856852,137.89,137.88,96.07300936]
[1741433566122,0.1856852,137.89,137.88,82.2526]
[1741433568800,0.1856852,137.89,137.88,96.07300936]
[1741433569507,0.1856852,137.89,137.88,82.2526]
[1741433571628,0.1856852,137.89,137.88,55.0]
[1741433572841,0.1856852,137.89,137.88,76.07300936]
[1741433574326,0.1856852,137.89,137.88,62.2526]
[1741433575411,0.1856852,137.89,137.88,76.07300936]
[1741433576131,0.1856852,137.89,137.88,7.2526]
[1741433578307,0.1856852,137.89,137.88,21.07300936]
[1741433582040,0.1856852,137.89,137.88,76.07300936]
[1741433587649,6.0314,137.96,137.91,20.0]
[1741433587814,6.0314,137.96,137.91,75.0]
[1741433588009,19.85180936,137.96,137.91,75.0]
[1741433588309,19.85180936,137.96,137.92,7.2505]
[1741433592443,6.0314,137.96,137.92,7.2505]
[1741433592751,6.0314,137.96,137.92,13.6705]
[1741433595241,6.0314,137.96,137.92,27.49090936]
[1741433596744,6.0314,137.96,137.92,82.49090936]
[1741433597823,19.85180936,137.96,137.92,61.42]
[1741433598029,19.88180936,137.96,137.92,61.42]
[1741433602739,19.88180936,137.96,137.92,13.6705]
[1741433603828,19.88180936,137.96,137.92,6.42]
[1741433604034,13.82040936,137.94,137.92,6.42]
[1741433604246,13.82040936,137.94,137.9,7.2512]
[1741433605465,13.82040936,137.95,137.9,7.2512]
[1741433605948,13.82040936,137.95,137.9,21.07160936]
[1741433609440,13.82040936,137.95,137.9,7.2512]
[1741433610474,13.82040936,137.95,137.9,21.07160936]
[1741433611075,27.13040936,137.96,137.9,21.07160936]
[1741433612483,13.82040936,137.95,137.89,82.47230936]
[1741433612658,13.82040936,137.94,137.89,68.6519]
[1741433613847,21.07000936,137.94,137.89,68.6519]
[1741433614147,13.82040936,137.92,137.88,0.033]
[1741433615548,13.82040936,137.92,137.88,7.2856]
[1741433616180,7.2503,137.93,137.88,7.2856]
[1741433616475,21.07070936,137.93,137.88,7.2856]
[1741433616848,13.82040936,137.92,137.88,0.033]
[1741433617046,6.7571,137.9,137.84,67.25960857]
[1741433617247,88.7,137.91,137.82,87.23198616]
[1741433617248,77.64081872,137.85,137.82,87.23198616]
[1741433617585,13.82040936,137.83,137.82,87.23198616]
[1741433617754,39.72535822,137.83,137.82,87.23198616]
[1741433618065,95.95735822,137.83,137.82,8.917e-05]
[1741433618266,151.23899566,137.83,137.82,8.917e-05]
[1741433619050,18.64964886,137.82,137.75,55.033]
[1741433619268,13.82040936,137.79,137.75,0.033]
[1741433620471,13.82040936,137.81,137.75,13.85340936]
[1741433620667,6.232,137.83,137.77,13.82040936]
[1741433620847,13.82040936,137.84,137.77,13.82040936]
[1741433621167,13.82040936,137.84,137.78,13.82040936]
[1741433621463,21.62555423,137.85,137.78,21.62555423]
[1741433621673,21.62555423,137.85,137.79,21.62555423]
[1741433621849,89.25442888,137.8,137.79,21.62555423]
[1741433622250,89.25442888,137.8,137.78,21.62555423]
[1741433622464,89.25442888,137.8,137.78,28.88305423]
[1741433622649,21.62555423,137.84,137.78,28.88305423]
[1741433623046,21.62555423,137.84,137.78,7.2575]
[1741433623567,21.62555423,137.84,137.78,28.88305423]
[1741433623772,21.62555423,137.84,137.78,340.88305423]
[1741433625091,21.62555423,137.86,137.8,40.27520309]
[1741433625372,27.66265423,137.87,137.81,28.04555423]
[1741433625555,21.62555423,137.86,137.81,6.42]
[1741433626572,21.62555423,137.86,137.82,7.2558]
[1741433627365,21.62555423,137.87,137.82,7.2558]
[1741433629578,21.62555423,137.88,137.82,28.88135423]
[1741433630680,21.62555423,137.87,137.82,7.2558]
[1741433630993,21.62555423,137.86,137.8,23.21025423]
[1741433631284,117.37505423,137.9,137.8,8.8412]
[1741433631285,21.62555423,137.84,137.8,8.8412]
[1741433631491,21.62555423,137.85,137.8,8.8412]
[1741433633196,21.62555423,137.84,137.81,0.033]
[1741433633970,21.62555423,137.85,137.81,0.033]
[1741433634905,21.62555423,137.86,137.81,0.033]
[1741433636372,21.62555423,137.86,137.81,7.2893]
[1741433636990,21.62555423,137.87,137.81,28.91485423]
[1741433637294,21.65555423,137.88,137.82,21.62555423]
[1741433637485,21.65555423,137.88,137.82,23.14505423]
[1741433637793,0.03,137.88,137.83,21.62555423]
[1741433638002,21.65555423,137.88,137.83,6.42]
[1741433638700,21.65555423,137.88,137.84,7.2547]
[1741433639806,21.65555423,137.88,137.83,6.42]
[1741433639807,21.65555423,137.88,137.83,13.6752]
[1741433640514,0.03,137.88,137.83,35.30075423]
[1741433641009,21.65555423,137.88,137.83,13.6752]
[1741433641182,0.03,137.88,137.83,35.30075423]
[1741433641393,0.03,137.88,137.83,27.50662505]
[1741433649423,0.03,137.88,137.84,13.83142505]
[1741433651493,0.03,137.88,137.85,21.08562505]
[1741433653698,0.03,137.88,137.85,7.2542]
[1741433653907,13.83142505,137.87,137.82,38.8542]
[1741433654796,13.83142505,137.87,137.82,52.68562505]
[1741433655195,13.83142505,137.87,137.83,7.2551]
[1741433657202,13.83142505,137.84,137.81,0.033]
[1741433658297,13.83142505,137.84,137.81,7.2893]
[1741433658717,13.83142505,137.86,137.81,7.2893]
[1741433658907,13.83142505,137.87,137.81,21.12072505]
[1741433659297,0.03,137.88,137.82,13.83142505]
[1741433659498,13.86142505,137.88,137.82,13.83142505]
[1741433660118,5.33110973,137.87,137.82,13.83142505]
[1741433660420,19.16253478,137.87,137.81,39.26162505]
[1741433661209,5.33110973,137.86,137.81,39.26162505]
[1741433661405,5.33110973,137.86,137.82,13.83142505]
[1741433661605,5.33110973,137.86,137.84,13.83142505]
[1741433662412,0.03,137.87,137.83,21.79902505]
[1741433663626,0.03,137.87,137.84,7.2547]
[1741433664425,5.33818797,137.86,137.84,7.2547]
[1741433665527,0.03,137.87,137.84,7.2547]
[1741433666023,13.86142505,137.96,137.89,1.6246]
[1741433666200,13.83142505,137.94,137.89,8.0446]
[1741433666628,19.1756798,137.95,137.89,8.0446]
[1741433667408,5.34425475,137.95,137.9,21.08302505]
[1741433667608,5.34425475,137.95,137.91,13.83142505]
[1741433667811,0.03,137.96,137.91,13.83142505]
[1741433668911,13.86142505,137.96,137.9,21.08302505]
[1741433669308,0.03,137.96,137.91,40.23911204]
[1741433669525,0.03,137.96,137.92,7.2505]
[1741433670228,0.03,137.96,137.91,28.84036318]
[1741433670530,21.61946318,137.96,137.91,7.2509]
[1741433671443,0.03,137.96,137.91,28.84036318]
[1741433672734,21.61946318,137.96,137.91,7.2509]
[1741433673222,21.58946318,137.95,137.91,7.2509]
[1741433673831,21.61946318,137.96,137.91,7.2509]
[1741433674226,21.58946318,137.95,137.91,7.2509]
[1741433674619,21.61946318,137.96,137.91,7.2509]
[1741433678531,0.03,137.96,137.91,28.84036318]
[1741433678717,21.61946318,137.96,137.9,21.58946318]
[1741433678918,21.58946318,137.94,137.89,46.5966]
[1741433679133,21.58946318,137.94,137.89,15.2966]
[1741433679635,21.58946318,137.94,137.89,8.8766]
[1741433679840,21.58946318,137.93,137.89,8.8766]
[1741433680711,21.58946318,137.94,137.89,8.8766]
[1741433681940,21.58946318,137.93,137.89,8.8766]
[1741433682435,21.58946318,137.93,137.89,1.6246]
[1741433682630,21.58946318,137.92,137.87,7.253]
[1741433683434,21.58946318,137.91,137.87,7.253]
[1741433683639,21.58946318,137.9,137.86,6.4]
[1741433683826,21.58946318,137.89,137.86,13.6536]
[1741433684434,21.58946318,137.9,137.86,13.6536]
[1741433685541,21.58946318,137.9,137.87,0.033]
[1741433686237,21.58946318,137.88,137.87,0.033]
[1741433686616,21.58946318,137.88,137.75,0.033]
[1741433686617,2.0,137.79,137.75,0.033]
[1741433686844,49.47332636,137.76,137.75,0.033]
[1741433687013,118.12297522,137.76,137.74,0.033]
[1741433687355,118.12297522,137.76,137.7,0.033]
[1741433687356,50.0,137.74,137.7,0.033]
[1741433687524,21.58946318,137.71,137.7,0.033]
[1741433687724,28.85106318,137.71,137.7,0.033]
[1741433688021,21.58946318,137.71,137.7,0.033]
[1741433688231,61.82857522,137.71,137.7,0.033]
[1741433688534,57.2621,137.7,137.68,0.033]
[1741433688739,43.17892636,137.69,137.68,0.033]
[1741433689537,21.58946318,137.69,137.68,0.033]
[1741433691947,21.58946318,137.7,137.68,0.033]
[1741433692442,20.06204418,137.7,137.68,0.033]
[1741433693031,21.58946318,137.71,137.68,0.033]
[1741433693729,21.58946318,137.7,137.68,0.033]
[1741433696125,21.58946318,137.71,137.68,0.033]
[1741433696442,21.58946318,137.69,137.68,0.033]
[1741433697119,43.17892636,137.69,137.68,0.033]
[1741433697323,175.47892636,137.69,137.68,0.033]
[1741433699343,103.88946318,137.69,137.68,0.033]
[1741433700227,125.47892636,137.69,137.68,0.033]
[1741433700744,103.88946318,137.69,137.68,0.033]
[1741433704461,125.47892636,137.69,137.68,0.033]
[1741433704926,103.88946318,137.69,137.68,0.033]
[1741433706077,21.58946318,137.69,137.68,0.033]
[1741433706554,21.58946318,137.7,137.68,0.033]
[1741433707179,21.58946318,137.69,137.68,0.033]
[1741433710461,0.03,137.7,137.68,0.033]
[1741433710663,0.03,137.7,137.68,21.62246318]
[1741433711569,0.03,137.7,137.69,7.2626]
[1741433712858,82.3,137.81,137.7,18.64964886]
[1741433713174,21.58946318,137.8,137.73,21.58946318]
[1741433713353,21.58946318,137.79,137.73,21.58946318]
[1741433714473,21.58946318,137.8,137.73,21.58946318]
[1741433714671,21.58946318,137.81,137.75,21.58946318]
[1741433715173,21.58946318,137.81,137.76,7.259]
[1741433715374,21.58946318,137.79,137.74,1.5976]
[1741433715584,21.58946318,137.78,137.74,8.8574]
[1741433715767,21.58946318,137.79,137.74,8.8574]
[1741433717176,21.58946318,137.8,137.74,30.44686318]
[1741433717478,103.88946318,137.83,137.75,40.23911204]
[1741433717479,21.58946318,137.81,137.75,40.23911204]
[1741433717664,21.58946318,137.82,137.76,21.58946318]
[1741433717869,21.58946318,137.82,137.76,28.14946318]
[1741433719260,21.58946318,137.83,137.77,28.84786318]
[1741433720980,21.58946318,137.82,137.77,7.2584]
[1741433721577,21.58946318,137.82,137.76,46.29666318]
[1741433721578,21.58946318,137.79,137.76,6.56]
[1741433721778,21.58946318,137.78,137.76,6.56]
[1741433722170,21.58946318,137.79,137.76,6.56]
[1741433723859,21.58946318,137.77,137.72,31.3]
[1741433724079,21.58946318,137.76,137.71,8.166]
[1741433724268,21.58946318,137.75,137.71,1.606]
[1741433725081,21.58946318,137.74,137.71,1.606]
[1741433725682,21.58946318,137.75,137.71,1.606]
[1741433725861,21.58946318,137.74,137.71,1.606]
[1741433726182,7.2588,137.77,137.71,1.606]
[1741433726382,21.58946318,137.75,137.71,1.606]
[1741433726586,21.58946318,137.75,137.71,8.8675]
[1741433726778,21.58946318,137.76,137.71,8.8675]
[1741433727886,21.58946318,137.75,137.71,8.8675]
[1741433728687,21.58946318,137.75,137.71,1.606]
[1741433728887,21.58946318,137.76,137.71,1.606]
[1741433729089,21.58946318,137.77,137.71,1.606]